[Event "*** SCC Grand Prix: Titled Tuesday Blitz"]
[Site "Chess.com"]
[Date "2020.06.09"]
[Round "3"]
[White "RaunakSadhwani2005"]
[Black "IwkooO"]
[Result "1-0"]
[WhiteElo "2904"]
[BlackElo "2600"]
[TimeControl "180+1"]
[EndTime "9:28:39 PDT"]
[Termination "RaunakSadhwani2005 won by resignation"]

1. e4 {[%clk 0:03:00.9]} 1... c5 {[%clk 0:02:59.9]} 2. Nc3 {[%clk 0:03:00.8]}
2... e6 {[%clk 0:02:57]} 3. d4 {[%clk 0:02:59.9]} 3... cxd4 {[%clk 0:02:57.2]}
4. Qxd4 {[%clk 0:03:00.8]} 4... Nc6 {[%clk 0:02:57.8]} 5. Qe3 {[%clk 0:03:01.1]}
5... Nf6 {[%clk 0:02:48.3]} 6. Nf3 {[%clk 0:03:00.5]} 6... d5 {[%clk 0:02:43.9]}
7. exd5 {[%clk 0:02:58.8]} 7... Nxd5 {[%clk 0:02:44.8]} 8. Nxd5 {[%clk
0:02:58.9]} 8... Qxd5 {[%clk 0:02:45.7]} 9. Bd3 {[%clk 0:02:50.7]} 9... Bc5
{[%clk 0:02:43.6]} 10. Qe2 {[%clk 0:02:49.5]} 10... O-O {[%clk 0:02:02.4]} 11.
O-O {[%clk 0:02:42.4]} 11... Qh5 {[%clk 0:01:57.9]} 12. Re1 {[%clk 0:02:04]}
12... Bd7 {[%clk 0:01:41.6]} 13. Bf4 {[%clk 0:01:52.4]} 13... Nb4 {[%clk
0:01:11.3]} 14. Ng5 {[%clk 0:00:58.5]} 14... Qxe2 {[%clk 0:01:07.9]} 15. Bxh7+
{[%clk 0:00:58.7]} 15... Kh8 {[%clk 0:01:07.3]} 16. Rxe2 {[%clk 0:00:59.6]}
16... f6 {[%clk 0:00:24.4]} 17. Ne4 {[%clk 0:00:58.4]} 17... Bxf2+ {[%clk
0:00:24.4]} 18. Rxf2 {[%clk 0:00:55.8]} 18... Kxh7 {[%clk 0:00:25.3]} 19. Bd6
{[%clk 0:00:56.1]} 19... Nd5 {[%clk 0:00:18.6]} 20. Bxf8 {[%clk 0:00:55.5]}
20... Rxf8 {[%clk 0:00:19.5]} 21. Nc5 {[%clk 0:00:50.2]} 21... Bc8 {[%clk
0:00:18.8]} 22. c4 {[%clk 0:00:46.7]} 22... Nb4 {[%clk 0:00:18.3]} 23. a3 {[%clk
0:00:42]} 23... Nc6 {[%clk 0:00:18.2]} 24. Rd1 {[%clk 0:00:42.2]} 24... b6
{[%clk 0:00:17.2]} 25. Ne4 {[%clk 0:00:40.5]} 25... e5 {[%clk 0:00:16.9]} 26. c5
{[%clk 0:00:38.7]} 26... Nd4 {[%clk 0:00:16.7]} 27. b4 {[%clk 0:00:34.8]} 27...
Bg4 {[%clk 0:00:16.1]} 28. Re1 {[%clk 0:00:31.9]} 28... Rc8 {[%clk 0:00:12.9]}
29. h3 {[%clk 0:00:31.1]} 29... Be6 {[%clk 0:00:12.5]} 30. Rc1 {[%clk
0:00:21.9]} 30... Bd5 {[%clk 0:00:12.1]} 31. Nd6 {[%clk 0:00:20.4]} 31... Rc6
{[%clk 0:00:12.4]} 32. Rc3 {[%clk 0:00:19.6]} 32... Nb5 {[%clk 0:00:09.8]} 33.
Nxb5 {[%clk 0:00:19.2]} 1-0

[Event "*** SCC Grand Prix: Titled Tuesday Blitz"]
[Site "Chess.com"]
[Date "2020.06.09"]
[Round "3"]
[White "PotapovaM"]
[Black "seorobert1971"]
[Result "1-0"]
[WhiteElo "2456"]
[BlackElo "2689"]
[TimeControl "180+1"]
[EndTime "9:28:40 PDT"]
[Termination "PotapovaM won by resignation"]

1. d4 {[%clk 0:03:00.9]} 1... Nf6 {[%clk 0:03:00]} 2. c4 {[%clk 0:03:01.5]} 2...
e6 {[%clk 0:03:00.1]} 3. Nf3 {[%clk 0:03:02.1]} 3... d5 {[%clk 0:02:59.6]} 4. g3
{[%clk 0:03:02.7]} 4... Be7 {[%clk 0:02:59.5]} 5. Bg2 {[%clk 0:03:03]} 5... O-O
{[%clk 0:02:59.9]} 6. O-O {[%clk 0:03:03.7]} 6... c6 {[%clk 0:03:00.1]} 7. Nfd2
{[%clk 0:03:03.3]} 7... b5 {[%clk 0:02:54.5]} 8. c5 {[%clk 0:03:02.1]} 8... e5
{[%clk 0:02:53.4]} 9. dxe5 {[%clk 0:02:56.7]} 9... Nfd7 {[%clk 0:02:52.4]} 10.
e4 {[%clk 0:02:55.2]} 10... d4 {[%clk 0:02:43]} 11. Nb3 {[%clk 0:02:44.8]} 11...
Nxe5 {[%clk 0:02:41.1]} 12. f4 {[%clk 0:02:29.1]} 12... Nc4 {[%clk 0:02:40.2]}
13. e5 {[%clk 0:02:05]} 13... d3 {[%clk 0:02:20.8]} 14. Nc3 {[%clk 0:01:59]}
14... a6 {[%clk 0:02:16]} 15. Ne4 {[%clk 0:01:55.9]} 15... a5 {[%clk 0:02:00.5]}
16. Nd6 {[%clk 0:01:50.4]} 16... a4 {[%clk 0:02:00.3]} 17. Nd4 {[%clk
0:01:30.9]} 17... Bxd6 {[%clk 0:01:51.3]} 18. cxd6 {[%clk 0:01:22.6]} 18... Qb6
{[%clk 0:01:33.4]} 19. Qxd3 {[%clk 0:01:22.4]} 19... Na6 {[%clk 0:01:31.4]} 20.
Kh1 {[%clk 0:01:13.4]} 20... Bd7 {[%clk 0:01:30.9]} 21. Nf5 {[%clk 0:00:56.4]}
21... Nb4 {[%clk 0:01:13.5]} 22. Ne7+ {[%clk 0:00:53]} 22... Kh8 {[%clk
0:01:13.3]} 23. Qe2 {[%clk 0:00:49.2]} 23... Rae8 {[%clk 0:01:04.4]} 24. f5
{[%clk 0:00:47.3]} 24... Qd4 {[%clk 0:00:52.3]} 25. Bf4 {[%clk 0:00:43.5]} 25...
Nd3 {[%clk 0:00:31.2]} 26. e6 {[%clk 0:00:23.6]} 26... fxe6 {[%clk 0:00:31.1]}
27. fxe6 {[%clk 0:00:24.5]} 27... Nxf4 {[%clk 0:00:29.9]} 28. Rxf4 {[%clk
0:00:22.9]} 28... Rxf4 {[%clk 0:00:28.3]} 29. exd7 {[%clk 0:00:22.8]} 29... Rd8
{[%clk 0:00:26.1]} 30. gxf4 {[%clk 0:00:19.5]} 30... Qxd6 {[%clk 0:00:25.9]} 31.
Rd1 {[%clk 0:00:14.7]} 31... Qc7 {[%clk 0:00:19.8]} 32. Nf5 {[%clk 0:00:13.8]}
32... Nb6 {[%clk 0:00:16.3]} 33. Qe8+ {[%clk 0:00:13.2]} 1-0

[Event "*** SCC Grand Prix: Titled Tuesday Blitz"]
[Site "Chess.com"]
[Date "2020.06.09"]
[Round "3"]
[White "Khazieva_Elza"]
[Black "LawrenceTrent"]
[Result "0-1"]
[WhiteElo "2249"]
[BlackElo "2531"]
[TimeControl "180+1"]
[EndTime "9:28:40 PDT"]
[Termination "LawrenceTrent won on time"]

1. e4 {[%clk 0:03:00.9]} 1... c5 {[%clk 0:02:44.6]} 2. Nf3 {[%clk 0:03:01.1]}
2... Nc6 {[%clk 0:02:43.5]} 3. d3 {[%clk 0:03:01.6]} 3... Nf6 {[%clk 0:02:42.1]}
4. g3 {[%clk 0:03:01.7]} 4... d5 {[%clk 0:02:42.3]} 5. Nbd2 {[%clk 0:02:54.4]}
5... b6 {[%clk 0:02:41.8]} 6. Bg2 {[%clk 0:02:54]} 6... dxe4 {[%clk 0:02:41.9]}
7. dxe4 {[%clk 0:02:46.4]} 7... Ba6 {[%clk 0:02:41]} 8. c3 {[%clk 0:02:46.4]}
8... Ng4 {[%clk 0:02:32.2]} 9. Qa4 {[%clk 0:02:36.8]} 9... Qc8 {[%clk
0:02:31.8]} 10. h3 {[%clk 0:02:25.5]} 10... b5 {[%clk 0:02:01.5]} 11. Qc2 {[%clk
0:02:12.3]} 11... Nge5 {[%clk 0:01:59.9]} 12. O-O {[%clk 0:01:42.7]} 12... b4
{[%clk 0:01:57]} 13. Re1 {[%clk 0:01:26.9]} 13... g6 {[%clk 0:01:26.6]} 14. Nb3
{[%clk 0:01:10.4]} 14... Nd3 {[%clk 0:00:59]} 15. Rd1 {[%clk 0:01:04.7]} 15...
c4 {[%clk 0:00:57.2]} 16. Nbd4 {[%clk 0:00:48]} 16... Nxd4 {[%clk 0:00:57]} 17.
Nxd4 {[%clk 0:00:43.7]} 17... Bg7 {[%clk 0:00:56.4]} 18. Qa4+ {[%clk 0:00:34.3]}
18... Kf8 {[%clk 0:00:56.3]} 19. Bf1 {[%clk 0:00:15.2]} 19... Bb7 {[%clk
0:00:38.8]} 20. Bg2 {[%clk 0:00:09.9]} 20... a5 {[%clk 0:00:32.4]} 21. Qc2
{[%clk 0:00:09.4]} 21... h5 {[%clk 0:00:28.6]} 22. h4 {[%clk 0:00:09.1]} 22...
Bf6 {[%clk 0:00:27.2]} 23. Be3 {[%clk 0:00:06.1]} 23... Kg7 {[%clk 0:00:26]} 24.
cxb4 {[%clk 0:00:06.3]} 24... axb4 {[%clk 0:00:25.3]} 25. a3 {[%clk 0:00:06.4]}
25... b3 {[%clk 0:00:23.6]} 26. Qd2 {[%clk 0:00:06.3]} 26... Rd8 {[%clk
0:00:21.7]} 27. Rab1 {[%clk 0:00:02.9]} 27... Bxd4 {[%clk 0:00:21]} 28. Bxd4+
{[%clk 0:00:03.5]} 28... Rxd4 {[%clk 0:00:21.7]} 29. Qc3 {[%clk 0:00:04.4]}
29... e5 {[%clk 0:00:22.1]} 30. Rd2 {[%clk 0:00:03.4]} 30... Qc5 {[%clk
0:00:20.5]} 0-1

[Event "*** SCC Grand Prix: Titled Tuesday Blitz"]
[Site "Chess.com"]
[Date "2020.06.09"]
[Round "3"]
[White "Danfii"]
[Black "chesslh19"]
[Result "1/2-1/2"]
[WhiteElo "2380"]
[BlackElo "2112"]
[TimeControl "180+1"]
[EndTime "9:28:40 PDT"]
[Termination "Game drawn by repetition"]

1. e4 {[%clk 0:03:00.9]} 1... e5 {[%clk 0:02:57.6]} 2. Nf3 {[%clk 0:03:00.7]}
2... Nf6 {[%clk 0:02:58.1]} 3. Nxe5 {[%clk 0:02:59.6]} 3... d6 {[%clk 0:02:58]}
4. Nf3 {[%clk 0:02:55.8]} 4... Nxe4 {[%clk 0:02:58]} 5. Nc3 {[%clk 0:02:56.2]}
5... Nxc3 {[%clk 0:02:57.6]} 6. dxc3 {[%clk 0:02:57.1]} 6... Be7 {[%clk
0:02:58]} 7. Be3 {[%clk 0:02:57.4]} 7... Nc6 {[%clk 0:02:56.7]} 8. Qd2 {[%clk
0:02:57.7]} 8... Be6 {[%clk 0:02:54.9]} 9. O-O-O {[%clk 0:02:57.9]} 9... a6
{[%clk 0:02:40.9]} 10. Kb1 {[%clk 0:02:56.8]} 10... Qd7 {[%clk 0:02:40.8]} 11.
h4 {[%clk 0:02:56.5]} 11... h6 {[%clk 0:02:29.4]} 12. Be2 {[%clk 0:02:36.7]}
12... O-O-O {[%clk 0:02:28.9]} 13. Nd4 {[%clk 0:02:34.8]} 13... Nxd4 {[%clk
0:02:19.9]} 14. Qxd4 {[%clk 0:02:35.2]} 14... Bf6 {[%clk 0:01:59.2]} 15. Qa7
{[%clk 0:02:33.9]} 15... Qc6 {[%clk 0:01:51.5]} 16. Bf3 {[%clk 0:02:25.8]} 16...
d5 {[%clk 0:01:51.5]} 17. Rhe1 {[%clk 0:01:31.8]} 17... Kd7 {[%clk 0:01:50.8]}
18. c4 {[%clk 0:01:15.9]} 18... Qxc4 {[%clk 0:00:58.3]} 19. b3 {[%clk
0:00:51.5]} 19... Qc3 {[%clk 0:00:51.9]} 20. Bd4 {[%clk 0:00:51.3]} 20... Bxd4
{[%clk 0:00:51.9]} 21. Qxd4 {[%clk 0:00:52.2]} 21... Qxd4 {[%clk 0:00:51.5]} 22.
Rxd4 {[%clk 0:00:53.1]} 22... Kc8 {[%clk 0:00:47.5]} 23. Red1 {[%clk 0:00:49.8]}
23... c6 {[%clk 0:00:44.3]} 24. g3 {[%clk 0:00:49.4]} 24... Kc7 {[%clk
0:00:43.2]} 25. a4 {[%clk 0:00:49.9]} 25... a5 {[%clk 0:00:34.7]} 26. Kb2 {[%clk
0:00:48.7]} 26... f6 {[%clk 0:00:34.1]} 27. c3 {[%clk 0:00:46.8]} 27... Bf7
{[%clk 0:00:31.1]} 28. b4 {[%clk 0:00:46.1]} 28... axb4 {[%clk 0:00:30]} 29.
cxb4 {[%clk 0:00:47]} 29... Ra8 {[%clk 0:00:27.5]} 30. a5 {[%clk 0:00:46.9]}
30... b6 {[%clk 0:00:17.8]} 31. axb6+ {[%clk 0:00:47.8]} 31... Kxb6 {[%clk
0:00:18.1]} 32. Rg4 {[%clk 0:00:48.7]} 32... g5 {[%clk 0:00:17.4]} 33. Rgd4
{[%clk 0:00:45.9]} 33... Rhe8 {[%clk 0:00:14.7]} 34. hxg5 {[%clk 0:00:43.7]}
34... hxg5 {[%clk 0:00:14]} 35. Rh1 {[%clk 0:00:43.7]} 35... Rh8 {[%clk
0:00:14.1]} 36. Re1 {[%clk 0:00:39.1]} 36... Rhe8 {[%clk 0:00:13.9]} 37. Rh1
{[%clk 0:00:38.7]} 37... Rh8 {[%clk 0:00:14.1]} 38. Re1 {[%clk 0:00:35.8]} 38...
Rhe8 {[%clk 0:00:14]} 39. Red1 {[%clk 0:00:30.1]} 39... Rh8 {[%clk 0:00:13.1]}
40. Re1 {[%clk 0:00:29.8]} 1/2-1/2

[Event "*** SCC Grand Prix: Titled Tuesday Blitz"]
[Site "Chess.com"]
[Date "2020.06.09"]
[Round "3"]
[White "amiralfio"]
[Black "PauloFanha"]
[Result "1-0"]
[WhiteElo "2379"]
[BlackElo "2002"]
[TimeControl "180+1"]
[EndTime "9:28:40 PDT"]
[Termination "amiralfio won by checkmate"]

1. d4 {[%clk 0:03:00.9]} 1... d5 {[%clk 0:02:59.6]} 2. Bf4 {[%clk 0:03:00.8]}
2... e6 {[%clk 0:02:59.2]} 3. e3 {[%clk 0:03:00.3]} 3... Bd6 {[%clk 0:02:58.6]}
4. Bg3 {[%clk 0:02:58.9]} 4... Nf6 {[%clk 0:02:57.4]} 5. Nd2 {[%clk 0:02:59.2]}
5... O-O {[%clk 0:02:56.9]} 6. Ngf3 {[%clk 0:02:59.2]} 6... c6 {[%clk
0:02:55.4]} 7. Bd3 {[%clk 0:02:58.9]} 7... Qc7 {[%clk 0:02:52.2]} 8. Ne5 {[%clk
0:02:57.8]} 8... Nbd7 {[%clk 0:02:50.8]} 9. f4 {[%clk 0:02:57.6]} 9... b6 {[%clk
0:02:43]} 10. Qe2 {[%clk 0:02:48.7]} 10... a5 {[%clk 0:02:39.4]} 11. O-O {[%clk
0:02:48]} 11... Bb7 {[%clk 0:02:25.4]} 12. Nxd7 {[%clk 0:02:23.5]} 12... Qxd7
{[%clk 0:02:18]} 13. Bh4 {[%clk 0:02:17.3]} 13... Be7 {[%clk 0:02:10.3]} 14. g4
{[%clk 0:02:07]} 14... Rfc8 {[%clk 0:01:57.1]} 15. g5 {[%clk 0:01:40.5]} 15...
Ne8 {[%clk 0:01:51.7]} 16. Nf3 {[%clk 0:01:32.5]} 16... g6 {[%clk 0:01:43.8]}
17. Ne5 {[%clk 0:01:30.1]} 17... Qc7 {[%clk 0:01:41.2]} 18. Bg3 {[%clk
0:01:25.7]} 18... Ng7 {[%clk 0:01:37]} 19. Nxf7 {[%clk 0:00:56.5]} 19... Kxf7
{[%clk 0:01:33.4]} 20. f5 {[%clk 0:00:55.6]} 20... Bd6 {[%clk 0:01:24.5]} 21.
fxg6+ {[%clk 0:00:52.5]} 21... Kg8 {[%clk 0:01:21.8]} 22. Rf7 {[%clk 0:00:47.7]}
22... Qb8 {[%clk 0:01:11.9]} 23. Bxd6 {[%clk 0:00:38.3]} 23... Qxd6 {[%clk
0:01:08.3]} 24. Rxb7 {[%clk 0:00:37.9]} 24... hxg6 {[%clk 0:00:58.9]} 25. Bxg6
{[%clk 0:00:33.3]} 25... Rc7 {[%clk 0:00:44.7]} 26. Rxc7 {[%clk 0:00:30.4]}
26... Qxc7 {[%clk 0:00:44.6]} 27. Rf1 {[%clk 0:00:31.3]} 27... Qe7 {[%clk
0:00:34]} 28. Bf7+ {[%clk 0:00:25.8]} 28... Kh8 {[%clk 0:00:24]} 29. Qg4 {[%clk
0:00:24.2]} 29... Nf5 {[%clk 0:00:17.5]} 30. Rxf5 {[%clk 0:00:16.1]} 30... exf5
{[%clk 0:00:15.8]} 31. Qh5+ {[%clk 0:00:16.3]} 31... Kg7 {[%clk 0:00:14.1]} 32.
Qg6+ {[%clk 0:00:16.2]} 32... Kf8 {[%clk 0:00:13.3]} 33. Qg8# {[%clk 0:00:15.9]}
1-0

[Event "*** SCC Grand Prix: Titled Tuesday Blitz"]
[Site "Chess.com"]
[Date "2020.06.09"]
[Round "3"]
[White "OdChessWorld"]
[Black "pedro_gines"]
[Result "1-0"]
[WhiteElo "2787"]
[BlackElo "2457"]
[TimeControl "180+1"]
[EndTime "9:28:42 PDT"]
[Termination "OdChessWorld won on time"]

1. d4 {[%clk 0:02:55.3]} 1... d5 {[%clk 0:02:53.1]} 2. c4 {[%clk 0:02:54.2]}
2... c6 {[%clk 0:02:53.1]} 3. Nf3 {[%clk 0:02:41.7]} 3... Nf6 {[%clk 0:02:51.7]}
4. Nbd2 {[%clk 0:02:41.8]} 4... Bg4 {[%clk 0:02:49.7]} 5. e3 {[%clk 0:02:38.6]}
5... e6 {[%clk 0:02:48.4]} 6. Bd3 {[%clk 0:02:38.8]} 6... Nbd7 {[%clk 0:02:48]}
7. Qc2 {[%clk 0:02:38.9]} 7... Be7 {[%clk 0:02:45.2]} 8. O-O {[%clk 0:02:39.1]}
8... O-O {[%clk 0:02:44.5]} 9. b3 {[%clk 0:02:22.2]} 9... a5 {[%clk 0:02:43.6]}
10. Bb2 {[%clk 0:02:20.9]} 10... Bh5 {[%clk 0:02:18]} 11. Ne5 {[%clk 0:02:11.6]}
11... Bg6 {[%clk 0:01:54.9]} 12. f4 {[%clk 0:02:10.7]} 12... Bxd3 {[%clk
0:01:48.9]} 13. Qxd3 {[%clk 0:02:09.4]} 13... c5 {[%clk 0:01:48.6]} 14. a4
{[%clk 0:01:49.8]} 14... cxd4 {[%clk 0:01:01.9]} 15. exd4 {[%clk 0:01:50.7]}
15... g6 {[%clk 0:01:02]} 16. c5 {[%clk 0:01:43.7]} 16... Nb8 {[%clk 0:00:47.4]}
17. Rae1 {[%clk 0:01:41.6]} 17... Nc6 {[%clk 0:00:47.2]} 18. h3 {[%clk
0:01:33.5]} 18... Nd7 {[%clk 0:00:28.7]} 19. Ndf3 {[%clk 0:01:23.8]} 19... Re8
{[%clk 0:00:26.6]} 20. Bc3 {[%clk 0:01:13.9]} 20... Bf8 {[%clk 0:00:23.5]} 21.
g4 {[%clk 0:01:04.8]} 21... f5 {[%clk 0:00:22.4]} 22. Nxc6 {[%clk 0:00:54.1]}
22... bxc6 {[%clk 0:00:21.4]} 23. Ng5 {[%clk 0:00:55]} 23... Qf6 {[%clk
0:00:17.3]} 24. gxf5 {[%clk 0:00:51]} 24... exf5 {[%clk 0:00:16.7]} 25. Rxe8
{[%clk 0:00:38.9]} 25... Rxe8 {[%clk 0:00:17.6]} 26. Bxa5 {[%clk 0:00:39.4]}
26... Qe7 {[%clk 0:00:09.2]} 27. Bd2 {[%clk 0:00:30.1]} 27... Nf6 {[%clk
0:00:07.2]} 28. b4 {[%clk 0:00:24.7]} 28... Ne4 {[%clk 0:00:07.2]} 29. Nf3
{[%clk 0:00:20.3]} 29... Bg7 {[%clk 0:00:03.3]} 30. Ne5 {[%clk 0:00:20.1]} 30...
Qe6 {[%clk 0:00:02]} 31. b5 {[%clk 0:00:19.9]} 31... Bxe5 {[%clk 0:00:01.9]} 32.
fxe5 {[%clk 0:00:19.8]} 1-0

[Event "*** SCC Grand Prix: Titled Tuesday Blitz"]
[Site "Chess.com"]
[Date "2020.06.09"]
[Round "3"]
[White "Ginger_GM"]
[Black "Kislov_Oleg"]
[Result "0-1"]
[WhiteElo "2571"]
[BlackElo "2404"]
[TimeControl "180+1"]
[EndTime "9:28:43 PDT"]
[Termination "Kislov_Oleg won by resignation"]

1. e4 {[%clk 0:03:00.9]} 1... e6 {[%clk 0:02:59.7]} 2. Nf3 {[%clk 0:02:59.8]}
2... d5 {[%clk 0:02:59]} 3. e5 {[%clk 0:02:59.9]} 3... c5 {[%clk 0:02:58.8]} 4.
b4 {[%clk 0:02:59.5]} 4... cxb4 {[%clk 0:02:59]} 5. d4 {[%clk 0:02:59.1]} 5...
Nc6 {[%clk 0:02:58.6]} 6. a3 {[%clk 0:02:58.9]} 6... Bd7 {[%clk 0:02:54.4]} 7.
axb4 {[%clk 0:02:58.3]} 7... Bxb4+ {[%clk 0:02:53.3]} 8. c3 {[%clk 0:02:58.2]}
8... Be7 {[%clk 0:02:53.6]} 9. Bd3 {[%clk 0:02:57.3]} 9... Nh6 {[%clk
0:02:53.6]} 10. h4 {[%clk 0:02:55.4]} 10... Nf5 {[%clk 0:02:52.3]} 11. Na3
{[%clk 0:02:51.4]} 11... a6 {[%clk 0:02:49.9]} 12. Nc2 {[%clk 0:02:50.5]} 12...
h5 {[%clk 0:02:44.5]} 13. c4 {[%clk 0:02:36.3]} 13... Nb4 {[%clk 0:02:34.6]} 14.
Nxb4 {[%clk 0:02:22.9]} 14... Bxb4+ {[%clk 0:02:34.3]} 15. Bd2 {[%clk
0:02:17.5]} 15... Bxd2+ {[%clk 0:02:28.9]} 16. Qxd2 {[%clk 0:02:16.9]} 16...
dxc4 {[%clk 0:02:23.5]} 17. Bxf5 {[%clk 0:02:12.5]} 17... exf5 {[%clk
0:02:23.8]} 18. d5 {[%clk 0:02:12.7]} 18... Rc8 {[%clk 0:02:07.9]} 19. O-O
{[%clk 0:02:10.3]} 19... c3 {[%clk 0:02:02.1]} 20. Qd4 {[%clk 0:02:09.7]} 20...
Bb5 {[%clk 0:02:02.1]} 21. e6 {[%clk 0:01:52]} 21... O-O {[%clk 0:01:56.6]} 22.
Rfe1 {[%clk 0:01:49.4]} 22... fxe6 {[%clk 0:01:49.8]} 23. Rxe6 {[%clk
0:01:48.9]} 23... c2 {[%clk 0:01:45.4]} 24. Rc1 {[%clk 0:01:47]} 24... Rf6
{[%clk 0:01:35.4]} 25. Qe5 {[%clk 0:01:18.2]} 25... Qc7 {[%clk 0:01:07.5]} 26.
Qe3 {[%clk 0:00:33.4]} 26... Qc3 {[%clk 0:00:57.6]} 27. Qg5 {[%clk 0:00:28]}
27... Rxe6 {[%clk 0:00:44.8]} 28. dxe6 {[%clk 0:00:27.7]} 28... Qf6 {[%clk
0:00:42.6]} 29. Qe3 {[%clk 0:00:27.2]} 29... f4 {[%clk 0:00:39.6]} 30. Qe1
{[%clk 0:00:20]} 30... Bd3 {[%clk 0:00:27.5]} 31. Ng5 {[%clk 0:00:19.4]} 31...
Bg6 {[%clk 0:00:23.8]} 32. Qd2 {[%clk 0:00:18.1]} 32... Rd8 {[%clk 0:00:19.8]}
33. Qe2 {[%clk 0:00:14.3]} 33... Qb2 {[%clk 0:00:16.9]} 34. Qe1 {[%clk 0:00:14]}
34... Qxc1 {[%clk 0:00:16.9]} 0-1

[Event "*** SCC Grand Prix: Titled Tuesday Blitz"]
[Site "Chess.com"]
[Date "2020.06.09"]
[Round "3"]
[White "Reader777"]
[Black "Nathan_Filgueiras"]
[Result "1-0"]
[WhiteElo "2612"]
[BlackElo "2407"]
[TimeControl "180+1"]
[EndTime "9:28:44 PDT"]
[Termination "Reader777 won by resignation"]

1. d4 {[%clk 0:03:00.9]} 1... Nf6 {[%clk 0:02:59.7]} 2. c4 {[%clk 0:03:01.3]}
2... e6 {[%clk 0:02:59.9]} 3. g3 {[%clk 0:03:01.6]} 3... d5 {[%clk 0:02:59.5]}
4. Bg2 {[%clk 0:03:01.7]} 4... dxc4 {[%clk 0:02:59.8]} 5. Nf3 {[%clk 0:03:01.6]}
5... a6 {[%clk 0:03:00.1]} 6. O-O {[%clk 0:03:01.7]} 6... b5 {[%clk 0:03:00.6]}
7. a4 {[%clk 0:02:59.3]} 7... Bb7 {[%clk 0:03:00.3]} 8. b3 {[%clk 0:02:51.4]}
8... cxb3 {[%clk 0:02:07.7]} 9. Qxb3 {[%clk 0:02:51]} 9... b4 {[%clk 0:02:06.7]}
10. Nbd2 {[%clk 0:02:46.8]} 10... Nbd7 {[%clk 0:02:06.1]} 11. Nc4 {[%clk
0:02:45.6]} 11... Be7 {[%clk 0:02:04.3]} 12. a5 {[%clk 0:02:42.6]} 12... Rb8
{[%clk 0:02:02]} 13. Bd2 {[%clk 0:02:41.2]} 13... O-O {[%clk 0:02:00.7]} 14.
Rfc1 {[%clk 0:02:35.9]} 14... c5 {[%clk 0:01:58.6]} 15. Bf4 {[%clk 0:02:34.3]}
15... Ra8 {[%clk 0:01:35]} 16. dxc5 {[%clk 0:01:59.7]} 16... Nxc5 {[%clk
0:01:33.5]} 17. Qxb4 {[%clk 0:01:45.3]} 17... Nd5 {[%clk 0:01:19]} 18. Qb2
{[%clk 0:01:41.6]} 18... Nxf4 {[%clk 0:01:09.7]} 19. gxf4 {[%clk 0:01:41.1]}
19... Rb8 {[%clk 0:01:10.1]} 20. Rd1 {[%clk 0:01:34.8]} 20... Qc7 {[%clk
0:01:07.2]} 21. Qe5 {[%clk 0:01:32.4]} 21... Qxe5 {[%clk 0:00:49.2]} 22. Nfxe5
{[%clk 0:01:31.2]} 22... Bxg2 {[%clk 0:00:37.6]} 23. Kxg2 {[%clk 0:01:30.9]}
23... Bf6 {[%clk 0:00:37.9]} 24. Rab1 {[%clk 0:01:28.4]} 24... Rfc8 {[%clk
0:00:33]} 25. Rxb8 {[%clk 0:01:17.5]} 25... Rxb8 {[%clk 0:00:33]} 26. Nd7 {[%clk
0:01:17.3]} 26... Nxd7 {[%clk 0:00:21.3]} 27. Rxd7 {[%clk 0:01:17.5]} 27... Bd8
{[%clk 0:00:15.1]} 28. Rd6 {[%clk 0:01:11.3]} 28... Ra8 {[%clk 0:00:11.3]} 29.
e3 {[%clk 0:01:05]} 29... Kf8 {[%clk 0:00:11.6]} 30. Rd7 {[%clk 0:01:01]} 30...
Ke8 {[%clk 0:00:11.3]} 31. Rb7 {[%clk 0:01:00.2]} 31... Be7 {[%clk 0:00:07]} 32.
Nb6 {[%clk 0:01:00.2]} 32... Rd8 {[%clk 0:00:06.5]} 33. Ra7 {[%clk 0:01:00.1]}
33... Bc5 {[%clk 0:00:04.5]} 34. Rxa6 {[%clk 0:00:59]} 34... Bxb6 {[%clk
0:00:04.8]} 35. Rxb6 {[%clk 0:00:59.1]} 35... Ra8 {[%clk 0:00:05.1]} 36. a6
{[%clk 0:00:58.9]} 36... Ke7 {[%clk 0:00:04.7]} 37. Rb7+ {[%clk 0:00:59]} 37...
Kf6 {[%clk 0:00:05.1]} 38. a7 {[%clk 0:00:59.1]} 38... g6 {[%clk 0:00:05.2]} 39.
Kf3 {[%clk 0:00:59.1]} 39... h5 {[%clk 0:00:05.1]} 40. Ke4 {[%clk 0:00:59.4]}
40... h4 {[%clk 0:00:04.1]} 41. h3 {[%clk 0:00:58.7]} 41... g5 {[%clk
0:00:03.8]} 42. fxg5+ {[%clk 0:00:58.4]} 42... Kg6 {[%clk 0:00:04.5]} 43. f4
{[%clk 0:00:57.3]} 43... f5+ {[%clk 0:00:03.9]} 44. Ke5 {[%clk 0:00:56.7]} 44...
Re8 {[%clk 0:00:02.5]} 45. Rb8 {[%clk 0:00:56.5]} 45... Re7 {[%clk 0:00:02.7]}
46. a8=Q {[%clk 0:00:55.7]} 1-0

[Event "*** SCC Grand Prix: Titled Tuesday Blitz"]
[Site "Chess.com"]
[Date "2020.06.09"]
[Round "3"]
[White "MikeSailer"]
[Black "AndrewDGreen"]
[Result "0-1"]
[WhiteElo "2062"]
[BlackElo "2336"]
[TimeControl "180+1"]
[EndTime "9:28:50 PDT"]
[Termination "AndrewDGreen won on time"]

1. d4 {[%clk 0:03:00.9]} 1... Nf6 {[%clk 0:02:59.2]} 2. Bf4 {[%clk 0:03:00.4]}
2... c5 {[%clk 0:02:58.1]} 3. e3 {[%clk 0:03:00.3]} 3... Qb6 {[%clk 0:02:54.9]}
4. Nc3 {[%clk 0:03:00.5]} 4... d6 {[%clk 0:02:54.7]} 5. Bb5+ {[%clk 0:02:52.1]}
5... Bd7 {[%clk 0:02:49.6]} 6. a4 {[%clk 0:02:51.8]} 6... cxd4 {[%clk
0:02:17.8]} 7. exd4 {[%clk 0:02:48.9]} 7... Qa5 {[%clk 0:02:12]} 8. Ne2 {[%clk
0:02:40.4]} 8... g6 {[%clk 0:01:54.5]} 9. O-O {[%clk 0:02:40.1]} 9... Bg7 {[%clk
0:01:51.7]} 10. h3 {[%clk 0:02:40.7]} 10... O-O {[%clk 0:01:51.3]} 11. Qd3
{[%clk 0:02:32.6]} 11... Bf5 {[%clk 0:01:45.8]} 12. Qd2 {[%clk 0:02:24.2]} 12...
Nc6 {[%clk 0:01:40.1]} 13. d5 {[%clk 0:02:18]} 13... Ne5 {[%clk 0:01:18.6]} 14.
Nd4 {[%clk 0:02:12]} 14... Bd7 {[%clk 0:01:04.1]} 15. Bxe5 {[%clk 0:02:04.2]}
15... dxe5 {[%clk 0:01:03]} 16. Nf3 {[%clk 0:01:52.5]} 16... Bxb5 {[%clk
0:00:54.3]} 17. axb5 {[%clk 0:01:52.7]} 17... Qc7 {[%clk 0:00:52.8]} 18. Rfe1
{[%clk 0:01:46.6]} 18... Nh5 {[%clk 0:00:50.5]} 19. Ra4 {[%clk 0:01:16.2]} 19...
Rfd8 {[%clk 0:00:48.1]} 20. Rea1 {[%clk 0:00:55.3]} 20... Qc5 {[%clk 0:00:36.7]}
21. b4 {[%clk 0:00:46.8]} 21... Qb6 {[%clk 0:00:35.2]} 22. Qd3 {[%clk
0:00:19.5]} 22... e6 {[%clk 0:00:32.1]} 23. Rd1 {[%clk 0:00:14.8]} 23... Nf4
{[%clk 0:00:31.4]} 24. Qe4 {[%clk 0:00:06.6]} 24... exd5 {[%clk 0:00:29.1]} 25.
Qe1 {[%clk 0:00:02.7]} 25... d4 {[%clk 0:00:24.7]} 26. Ne4 {[%clk 0:00:02.5]}
26... Qxb5 {[%clk 0:00:24]} 27. Ra3 {[%clk 0:00:02.8]} 27... h6 {[%clk 0:00:21]}
28. Nc5 {[%clk 0:00:03]} 28... b6 {[%clk 0:00:17.9]} 29. Na6 {[%clk 0:00:02.2]}
29... Rac8 {[%clk 0:00:15.8]} 30. Nxe5 {[%clk 0:00:02.2]} 30... Qxe5 {[%clk
0:00:15]} 0-1